Cogmind - Beta 9.4 @@@ ROGUE MODE // 2020.02.03 @ 20:58:01 // Winter2019/RPGLIKE Player: Judas Result: Destroyed by D-53 Grenadier with Mini Grenade Launcher Performance ------------- Evolutions (0) 0 Regions Visited (2) 400 Robots Destroyed (22) 110 Value Destroyed (94) 94 Prototype IDs (0) 0 Alien Tech Used (0) 0 Bonus (-16) -16 TOTAL SCORE: 588 Bonus ------- Friendly Fire -16 Cogmind --------- Core Integrity 0/600 Matter 190/300 Energy 234/250 System Corruption 0% Temperature Cool (0) Movement Walking (120) Location -10/Mines Parts ------- > --- POWER (1) -------- Ion Engine > --- PROPULSION (2) --- Aluminum Leg Aluminum Leg > --- UTILITY (1) ------ Targeting Computer > --- WEAPON (2) ------- EM Pulse Gun Grenade Launcher > --- INVENTORY (1) ---- Light Assault Rifle Peak State ------------ > --- POWER ------------ Ion Engine > --- PROPULSION ------- Aluminum Leg Aluminum Leg > --- UTILITY ---------- Targeting Computer > --- WEAPON ----------- EM Pulse Gun Light Assault Rifle > --- INVENTORY -------- (None) [Rating: 6] Favorites ----------- Power Ion Engine Engine Ion Engine Propulsion Aluminum Leg Leg Aluminum Leg Utility Targeting Computer Processor Targeting Computer Weapon EM Pulse Gun Energy Gun EM Pulse Gun Ballistic Gun Light Assault Rifle Launcher Grenade Launcher Build | -11 -10 -10 ------- Run | Scr Mat Min Slots Evolved 2 | 2 . . Power . | . . . Propulsion 1 | 1 . . Utility . | . . . Weapon 1 | 1 . . Parts Attached 4 | 2 1 1 Power . | . . . Engine . | . . . Core . | . . . Reactor . | . . . Propulsion 1 | 1 . . Treads . | . . . Leg 1 | 1 . . Wheel . | . . . Hover . | . . . Flight . | . . . Utility 1 | . 1 . Device . | . . . Storage . | . . . Processor 1 | . 1 . Hackware . | . . . Protection . | . . . Artifact . | . . . Weapon 2 | 1 . 1 Energy Gun . | . . . Energy Cannon . | . . . Ballistic Gun 1 | 1 . . Ballistic Cannon . | . . . Launcher 1 | . . 1 Special Weapon . | . . . Impact Weapon . | . . . Slashing Weapon . | . . . Piercing Weapon . | . . . Special Melee Weapon . | . . . Unidentified Prototypes . | . . . Parts Lost . | . . . Power . | . . . Propulsion . | . . . Utility . | . . . Weapon . | . . . Highest Loss Streak . | . . . Average Slot Usage (%) 98 | . 95 100 Engine 16 | . 16 16 Leg 33 | . 33 33 Processor 14 | . 12 16 Energy Gun 16 | . 16 16 Ballistic Gun 14 | . 16 13 Launcher 1 | . . 2 Naked Turns . | . . . Heaviest Build 10 | 8 8 10 Greatest Support 20 | 20 20 20 Greatest Overweight (x) . | . . . Average Overweight (x) . | . . . Largest Inventory Capacity 1 | 1 1 1 Average Capacity . | . 1 1 Most Carried 1 | . 1 1 Average Carried . | . . 1 Final Capacity 1 | 1 1 1 Final Carried 1 | . 1 1 Class Distribution -------------------- 100% | Mutant Dominant Class ---------------- Mutant | -10/Materials Mutant | -10/Mines Resources | -11 -10 -10 ----------- Run | Scr Mat Min Matter Collected 248 | 200 36 12 Remotely . | . . . Salvage Created 275 | . 50 225 Parts 24 | . 4 20 Haulers Intercepted 1 | . 1 . Recyclers Shooed 2 | . . 2 Parts Field Recycled . | . . . Retrieved Matter . | . . . Parts Self-Destructed . | . . . Prevented . | . . . Kills | -11 -10 -10 ------- Run | Scr Mat Min Combat Hostiles Destroyed 17 | . . 17 Guns 6 | . . 6 AOE 11 | . . 11 Classes Destroyed 7 | . 1 6 Worker 2 | . . 2 Tunneler 1 | . . 1 Hauler 1 | . 1 . Recycler 1 | . . 1 Swarmer 3 | . . 3 Grunt 1 | . . 1 Assembled 13 | . . 13 Best Kill Streak 13 | . 1 13 Combat Bots Only 13 | . . 13 Max Kills in Single Turn 3 | . 1 3 Gunslinging . | . . . Exploded 3 | . . 3 Melee . | . . . Uniques/NPCs Destroyed . | . . . Combat | -11 -10 -10 -------- Run | Scr Mat Min Damage Taken 877 | . 1 876 Core 723 | . . 723 Absorbed by Shields . | . . . Redirected to Core 516 | . . 516 Core Remaining (%) 100 | 100 . . Volleys Fired 32 | . 8 24 Largest 2 | . 2 2 Hottest 70 | . 60 70 Shots Fired 64 | . 16 48 Gun 54 | . 16 38 Cannon . | . . . Launcher 10 | . . 10 Special . | . . . Kinetic 22 | . 8 14 Thermal . | . . . Explosive 10 | . . 10 Electromagnetic 32 | . 8 24 Robot Hit Streak 7 | . 4 7 Robot Miss Streak 4 | . 2 4 Penetration Max . | . . . Secondary Targets 1 | . . 1 Max Gunslinging Chain 1 | . . 1 Shots Hit Robots 42 | . 10 32 Core Hits 40 | . 4 36 Critical Hits . | . . . Critical Kills . | . . . Critical Parts Destroyed . | . . . Melee Attacks . | . . . Impact . | . . . Slashing . | . . . Piercing . | . . . Sneak Attacks . | . . . Combat Hostiles . | . . . Follow-up Attacks . | . . . Damage Inflicted 1374 | . 108 1266 Guns 388 | . 106 282 Cannons . | . . . Explosions 981 | . . 981 Melee . | . . . Ramming 5 | . 2 3 Kinetic 106 | . 41 65 Thermal 304 | . . 304 Explosive 677 | . . 677 Electromagnetic 282 | . 65 217 Impact . | . . . Slashing . | . . . Piercing . | . . . Highest Corruption . | . . . Average Corruption . | . . . Corruption Purged . | . . . Overload Shots . | . . . Overflow Damage 25 | . . 25 Projectiles . | . . . Explosions 25 | . . 25 Melee . | . . . Knockbacks . | . . . Impact . | . . . Kinetic . | . . . Secondary . | . . . Self-Inflicted Damage 190 | . 1 189 Shots 8 | . . 8 Rammed 2 | . 1 1 Targets Rammed 2 | . 1 1 Kicked . | . . . Crushed . | . . . Highest Temperature 97 | . 20 97 Average Temperature 26 | . 13 29 Received Heat Transfer 45 | . . 45 Siege Activations . | . . . Robots Corrupted . | . . . Combat Hostiles . | . . . Parts Fried . | . . . Impact Corruptions . | . . . Robots Melted . | . . . Combat Hostiles . | . . . Parts Melted . | . . . Heat Transferred 400 | . . 400 Parts Sabotaged . | . . . Parts Stolen . | . . . Parts Stripped . | . . . Power Chain Reactions 3 | . . 3 Missiles Intercepted . | . . . Alert | -11 -10 -10 ------- Run | Scr Mat Min Peak Influence 139 | . 12 139 Average Influence 54 | . 3 94 Maximum Alert Level . | . . . Low Security (%) 100 | 100 100 100 Level 1 . | . . . Level 2 . | . . . Level 3 . | . . . Level 4 . | . . . Level 5 . | . . . High Security . | . . . Max Security . | . . . Squads Dispatched . | . . . Investigation . | . . . Extermination . | . . . Reinforcement . | . . . Assault . | . . . Garrison . | . . . Intercept . | . . . Construction Impeded . | . . . Haulers Reinforced . | . . . Stealth | -11 -10 -10 --------- Run | Scr Mat Min Distress Signals . | . . . Communications Jammed . | . . . Distress Signals . | . . . Times Spotted 24 | . . 24 Peak Tracking Total 6 | . . 6 Tactical Retreats 2 | . . 2 Traps | -11 -10 -10 ------- Run | Scr Mat Min Traps Triggered . | . . . Indirectly . | . . . Trap Hack Attempts . | . . . Triggered . | . . . Disarmed . | . . . Reprogrammed . | . . . Reused . | . . . Traps Extracted . | . . . Installed . | . . . Triggered . | . . . Machines | -11 -10 -10 ---------- Run | Scr Mat Min Machines Disabled . | . . . Max in Single Turn . | . . . Machines Sabotaged . | . . . Garrisons Compromised . | . . . Overloaded Fab Kills . | . . . Fab Network Shutdowns . | . . . Hacking | -11 -10 -10 --------- Run | Scr Mat Min Machines Accessed 1 | . 1 . Terminals 1 | . 1 . Fabricators . | . . . Repair Stations . | . . . Recycling Units . | . . . Scanalyzers . | . . . Garrison Access . | . . . Total Hacks 3 | . 3 . Successful 1 | . 1 . Failed 2 | . 2 . Catastrophic . | . . . Database Lockouts . | . . . Manual 3 | . 3 . Terminals 3 | . 3 . Fabricators . | . . . Repair Stations . | . . . Recycling Units . | . . . Scanalyzers . | . . . Garrison Access . | . . . Terminal Hacks . | . . . Fabricator Hacks . | . . . Repair Station Hacks . | . . . Recycling Unit Hacks . | . . . Scanalyzer . | . . . Garrison Access Hacks . | . . . Unauthorized Hacks 2 | . 2 . Terminals 1 | . 1 . Botnet 1 | . 1 . Fabricators . | . . . Repair Stations . | . . . Recycling Units . | . . . Scanalyzers . | . . . Garrison Access . | . . . Data Cores Recovered . | . . . Used . | . . . Hacking Detections 1 | . 1 . Full Trace Events . | . . . Feedback Events . | . . . Feedback Blocked . | . . . Robot Schematics Acquired . | . . . Robots Built . | . . . Matter . | . . . Time . | . . . Total Robot Build Rating . | . . . Part Schematics Acquired . | . . . Parts Built . | . . . Matter . | . . . Time . | . . . Total Part Build Rating . | . . . Parts Repaired . | . . . Time . | . . . Parts Recycled . | . . . Recycled Matter . | . . . Retrieved Matter . | . . . Retrieved Components . | . . . Parts Scanalyzed . | . . . Part Schematics Acquired . | . . . Parts Damaged . | . . . Bothacking | -11 -10 -10 ------------ Run | Scr Mat Min Used RIF Installer . | . . . Robots Hacked . | . . . Non-combat . | . . . Combat . | . . . Robot Hacks Applied . | . . . Relay Couplers Released . | . . . Robots Rewired . | . . . Allies Hacked . | . . . Hacks Repelled . | . . . Allies | -11 -10 -10 -------- Run | Scr Mat Min Total Allies . | . . . Largest Group . | . . . Highest-Rated Group . | . . . Highest-Rated Ally . | . . . Total Orders . | . . . Ally Attacks . | . . . Total Damage . | . . . Kills . | . . . Allies Corrupted . | . . . Allies Melted . | . . . Intel | -11 -10 -10 ------- Run | Scr Mat Min Robot Analysis Total . | . . . Derelict Logs Recovered . | . . . Drone Launches . | . . . Drone Recoveries . | . . . Exploration | -11 -10 -10 ------------- Run | Scr Mat Min Turns Passed 516 | 12 215 289 Spaces Moved 337 | 8 158 171 Core . | . . . Treads . | . . . Legs 337 | 8 158 171 Wheels . | . . . Hover . | . . . Flight . | . . . Fastest Speed 120 | 120 120 120 Average Speed 120 | 120 120 120 Slowest Speed 120 | 120 120 120 Overloaded Moves . | . . . Propulsion Burnouts . | . . . Robots Hopped . | . . . Cave-ins Triggered . | . . . Exploration Rate (%) 29 | 1 36 52 Regions Visited 2 Branch Regions 1 Pre-discovered Areas . | . . . Known Exits Taken . | . . . Unknown Exits Taken 2 | 1 1 . Scrap Searched 1 | . . 1 Spaces Dug . | . . . Terrain Destroyed 62 | . . 62 Melee . | . . . Projectile . | . . . AOE 62 | . . 62 Actions | -11 -10 -10 --------- Run | Scr Mat Min Total 389 | 9 168 212 Wait 8 | . . 8 Move 335 | 7 157 171 Hop . | . . . Pick Up 2 | . 1 1 Fast Attach 3 | 2 1 . Attach . | . . . Detach . | . . . Swap 1 | . . 1 Drop 1 | . . 1 Fire 32 | . 8 24 Melee . | . . . Ram . | . . . Kick 2 | . 1 1 Crush . | . . . Escape Stasis . | . . . Rewire . | . . . Trap . | . . . Miscellaneous 5 | . . 5 Route ------- -11/Scrapyard -10/Materials (discovered 2 exits: [*Min x2]) -10/Mines History --------- Turn | Location | Event 1 | -11/Scrapyard | Upgraded with Propulsion slot (x1) 1 | -11/Scrapyard | Upgraded with Weapon slot (x1) 1 | -11/Scrapyard | Discovered new exit (range 1) 13 | -11/Scrapyard | Entered Materials 55 | -10/Materials | Discovered new exit (range 11) 149 | -10/Materials | Discovered new exit (range 10) 228 | -10/Materials | Entered Mines 314 | -10/Mines | Build established: Mutant 470 | -10/Mines | Assembled infested the area 475 | -10/Mines | Assisted by a Guerilla fighting off Assembled 507 | -10/Mines | Core integrity fell below 50% 517 | -10/Mines | Core integrity fell below 20% 517 | -10/Mines | Destroyed by D-53 Grenadier with Mini Grenade Launcher Last Messages --------------- 00497_ as-60406 destroyed. 00497_ Flexi-carbon Leg severed. 00497_ HV Slug penetrates as-17865. 00497_ as-17865 suffers critical hit. 00497_ as-17865 knocked back. 00499_ The unstable cave ceiling collapses. 00499_ HV Slug penetrates Earth. 00501_ as-17865 destroyed. 00503_ as-81729 destroyed. 00503_ HV Slug penetrates as-88448. 00503_ as-88448 suffers critical hit. 00503_ as-88448 destroyed. 00504_ C-30 ARC bursts open, deploying its payload. 00504_ D-53 Grenadier unfolds itself. 00505_ OI-4OD(h) destroyed. 00507_ The unstable cave ceiling collapses. 00510_ Destroyed Asb. Hover Unit. 00510_ as-88068 destroyed. 00510_ as-38439 destroyed. 00512_ The unstable cave ceiling collapses. Map ----- +----------------------------------------------------+ | ??????????????????????### #??????? | | ????????????????????????# #??????? | | ????????????????????????# #??????? | | ????????????????????????# #####??? | | ????????????????????????# #??? | | ????????????????????????###### #??? | | ?????????????????????????????# #??? | | ?????????????????????????????# #??? | | ?????????????????????????????# #??? | | ?????????????????????????????# ##?? | | ??????????????????????????### #?? | | ???????????????????????#### #?? | | ??????????????? ??????## % #?? | | ?????????????? #???## != ##? | | ???????????????"% #### = #? | | ??????????????""" #? | | ?????????????""" #?? | | ???????????? d ##? | | ????????????? d ;#? | | ???????????????? ### # #? | | ????????????????????# ##? | | ?????????????????????# #?? | | ???????????????????### #?? | | ??????????????????## #?? | | ??????????????????# #?? | | ??????????????????# @ ##?? | | ??????????? ## #??? | | ??????????? ####?# #?? | | ????????????????????## #?? | | ?????????????????????## #?? | | ?????????????????????? #?? | | ????????????????????? #?? | | ????????????????????? #?? | | ???????????????????? ## <##?? | | ??????????????????? ;??#####??? | | ??????????????????? #?????????? | | ??????????????????# ??????????? | | ?????????????????? ??????????? | | ?????????????????? ??????????? | | ????????????????????? #???????????? | | ??????????????????????????????????? | | ??????????????????????????????????? | | ??????????????????????????????????? | | | | | | | | | | | | | | | +----------------------------------------------------+ Best States ------------- Heat Dissipation 25 Energy Generation 10 Energy Capacity 250 Matter Stores 300 Matter Capacity 300 Sight Range 16 Terrain Scan Density 10 Evasion (%) 40 Targeting Accuracy 5 Item Schematics ----------------- None Robot Schematics ------------------ None Fabricated ------------ Nothing Alien Tech Used ----------------- None Achievements -------------- None Challenges ------------ None RPGLIKE | -11 -10 -10 --------- Run | Scr Mat Min Levels Raised . | . . . XP Earned 4035 | 3000 35 1000 XP Spent 1450 | 1450 . . Upgrades 4 | 4 . . Propulsion Slot 1 | 1 . . Weapon Slot 1 | 1 . . Inventory Capacity 1 | 1 . . KI Damage % 1 | 1 . . Protomatter Created 71 | . . 71 Integrity Restored 108 | . . 108 Core 108 | . . 108 Protomatter Decayed 18 | . . 18 Game ------ Seed CentriumMasterCapacitor Manual? 0 Play Time 00:09:40 Cumulative 49.2 hours Start 2020.02.03 @ 20:45:48 End 2020.02.03 @ 20:58:01 Sessions 1 Manual Loads 0 Difficulty Rogue Special Mode Winter2019/RPGLIKE Game No. 94 Rogue 94 Adventurer 0 Explorer 0 Win Type - Total 0 Types 0/0/0/0/0/0/0 Lore% 28 Gallery% 39 Achievement% 29 Wizard Run 0 Options --------- ASCII 0 Keyboard 0 Movement Mouse Keybinds 0 Fullscreen 2 Font 18/SmallcapsGlow Map View 76x50 Tactical HUD 1 Map Filters NONE Filters NONE Steam 1 RUN: 81fb5c24-7b02-43e2-b3a3-603c00a58843